[Event "Titled Tuesday Blitz May 16 Late 2023"]
[White "Shubin, Daniel"]
[Black "ibove"]
[WhiteFideId "30936470"]
[WhiteElo "2040"]
[BlackElo "2277"]
[Result "1/2-1/2"]
[Round "06"]
[TimeControl "180+2"]
[Date "2023.05.16"]
[WhiteClock "0:00:40"]
[BlackClock "0:00:29"]

1. e4 {[%clk 0:03:00]}  c5 {[%clk 0:02:58]} 2. Nf3 {[%clk 0:03:00]}  d6 {[%clk 0:02:57]} 3. d4 {[%clk 0:02:59]}  cxd4 {[%clk 0:02:58]} 4. Nxd4 {[%clk 0:03:00]}  Nf6 {[%clk 0:02:58]} 5. Nc3 {[%clk 0:03:00]}  g6 {[%clk 0:02:59]} 6. Be3 {[%clk 0:03:00]}  Bg7 {[%clk 0:02:59]} 7. Bc4 {[%clk 0:02:59]}  O-O {[%clk 0:03:00]} 8. O-O {[%clk 0:02:59]}  Ng4 {[%clk 0:02:58]} 9. Bg5 {[%clk 0:02:54]}  h6 {[%clk 0:02:52]} 10. Bh4 {[%clk 0:02:53]}  g5 {[%clk 0:02:49]} 11. Bg3 {[%clk 0:02:51]}  Nc6 {[%clk 0:02:48]} 12. Nce2 {[%clk 0:02:43]}  Qb6 {[%clk 0:02:34]} 13. Nxc6 {[%clk 0:02:28]}  bxc6 {[%clk 0:02:35]} 14. h3 {[%clk 0:02:28]}  Ne5 {[%clk 0:02:32]} 15. Bb3 {[%clk 0:02:27]}  Ba6 {[%clk 0:02:30]} 16. Re1 {[%clk 0:02:20]}  Nc4 {[%clk 0:02:27]} 17. Bxc4 {[%clk 0:02:04]}  Bxc4 {[%clk 0:02:28]} 18. e5 {[%clk 0:02:04]}  dxe5 {[%clk 0:02:18]} 19. b3 {[%clk 0:01:58]}  Rad8 {[%clk 0:02:12]} 20. Qc1 {[%clk 0:01:49]}  Bxe2 {[%clk 0:02:06]} 21. Rxe2 {[%clk 0:01:50]}  Qc5 {[%clk 0:02:00]} 22. Qe3 {[%clk 0:01:36]}  Qxe3 {[%clk 0:01:57]} 23. Rxe3 {[%clk 0:01:37]}  e4 {[%clk 0:01:56]} 24. Rae1 {[%clk 0:01:29]}  f5 {[%clk 0:01:56]} 25. Bc7 {[%clk 0:01:28]}  Rd7 {[%clk 0:01:54]} 26. Ba5 {[%clk 0:01:27]}  Bd4 {[%clk 0:01:50]} 27. R3e2 {[%clk 0:01:27]}  e5 {[%clk 0:01:50]} 28. c3 {[%clk 0:01:26]}  Bb6 {[%clk 0:01:50]} 29. Bxb6 {[%clk 0:01:25]}  axb6 {[%clk 0:01:51]} 30. f3 {[%clk 0:01:24]}  exf3 {[%clk 0:01:51]} 31. gxf3 {[%clk 0:01:25]}  Rd3 {[%clk 0:01:49]} 32. Re3 {[%clk 0:01:24]}  Rxe3 {[%clk 0:01:45]} 33. Rxe3 {[%clk 0:01:24]}  Re8 {[%clk 0:01:46]} 34. Kf2 {[%clk 0:01:24]}  Kf7 {[%clk 0:01:46]} 35. Rd3 {[%clk 0:01:24]}  Ke6 {[%clk 0:01:45]} 36. Ke3 {[%clk 0:01:17]}  Ra8 {[%clk 0:01:43]} 37. a4 {[%clk 0:01:16]}  h5 {[%clk 0:01:38]} 38. Rd1 {[%clk 0:01:11]}  b5 {[%clk 0:01:37]} 39. axb5 {[%clk 0:01:11]}  cxb5 {[%clk 0:01:38]} 40. Rg1 {[%clk 0:01:10]}  Rg8 {[%clk 0:01:37]} 41. Ra1 {[%clk 0:01:10]}  g4 {[%clk 0:01:36]} 42. Ra6+ {[%clk 0:01:09]}  Kd5 {[%clk 0:01:35]} 43. hxg4 {[%clk 0:01:07]}  hxg4 {[%clk 0:01:36]} 44. fxg4 {[%clk 0:01:08]}  fxg4 {[%clk 0:01:36]} 45. c4+ {[%clk 0:01:02]}  bxc4 {[%clk 0:01:36]} 46. Ra5+ {[%clk 0:01:02]}  Kc6 {[%clk 0:01:35]} 47. bxc4 {[%clk 0:01:02]}  g3 {[%clk 0:01:26]} 48. Ra1 {[%clk 0:00:56]}  g2 {[%clk 0:01:24]} 49. Rg1 {[%clk 0:00:56]}  Rg4 {[%clk 0:01:14]} 50. Kf3 {[%clk 0:00:54]}  Rf4+ {[%clk 0:00:50]} 51. Ke3 {[%clk 0:00:53]}  Rg4 {[%clk 0:00:48]} 52. Kf3 {[%clk 0:00:53]}  Rxc4 {[%clk 0:00:45]} 53. Rxg2 {[%clk 0:00:51]}  Kd5 {[%clk 0:00:45]} 54. Rd2+ {[%clk 0:00:51]}  Rd4 {[%clk 0:00:45]} 55. Ra2 {[%clk 0:00:51]}  Rd3+ {[%clk 0:00:44]} 56. Ke2 {[%clk 0:00:50]}  Ke4 {[%clk 0:00:44]} 57. Ra4+ {[%clk 0:00:50]}  Rd4 {[%clk 0:00:45]} 58. Rxd4+ {[%clk 0:00:45]}  exd4 {[%clk 0:00:44]} 59. Kd2 {[%clk 0:00:45]}  d3 {[%clk 0:00:44]} 60. Kd1 {[%clk 0:00:45]}  Kd4 {[%clk 0:00:43]} 61. Kd2 {[%clk 0:00:45]}  Kc4 {[%clk 0:00:43]} 62. Kd1 {[%clk 0:00:45]}  Kd5 {[%clk 0:00:36]} 63. Kd2 {[%clk 0:00:40]}  Kd4 {[%clk 0:00:36]} 64. Kd1 {[%clk 0:00:40]}  Ke3 {[%clk 0:00:36]} 65. Ke1 {[%clk 0:00:40]}  Ke4 {[%clk 0:00:34]} 66. Kd1 {[%clk 0:00:40]}  Kd5 {[%clk 0:00:32]} 67. Kd2 {[%clk 0:00:39]}  Kc4 {[%clk 0:00:30]} 68. Kd1 {[%clk 0:00:40]}  Kc3 {[%clk 0:00:30]} 69. Kc1 {[%clk 0:00:40]}  Kb4 {[%clk 0:00:29]} 70. Kd2 {[%clk 0:00:40]}  Kc4 {[%clk 0:00:29]} 1/2-1/2


[Site "https://www.chess.com"]

[Event "Titled Tuesday Blitz May 16 Late 2023"]
[White "De Souza, Cristiano Gomes"]
[Black "Vega Gutierrez, Sabrina"]
[WhiteFideId "2151758"]
[BlackFideId "2219026"]
[WhiteElo "2068"]
[BlackElo "2209"]
[Result "0-1"]
[Round "06"]
[TimeControl "180+2"]
[Date "2023.05.16"]
[WhiteClock "0:01:37"]
[BlackClock "0:00:50"]

1. d4 {[%clk 0:02:59]}  d5 {[%clk 0:02:59]} 2. c4 {[%clk 0:02:58]}  e6 {[%clk 0:02:58]} 3. Nf3 {[%clk 0:02:58]}  c6 {[%clk 0:02:57]} 4. Nc3 {[%clk 0:02:58]}  dxc4 {[%clk 0:02:57]} 5. a4 {[%clk 0:02:58]}  Bb4 {[%clk 0:02:56]} 6. e3 {[%clk 0:02:57]}  b5 {[%clk 0:02:56]} 7. Bd2 {[%clk 0:02:57]}  a5 {[%clk 0:02:55]} 8. axb5 {[%clk 0:02:57]}  Bxc3 {[%clk 0:02:55]} 9. Bxc3 {[%clk 0:02:57]}  cxb5 {[%clk 0:02:56]} 10. b3 {[%clk 0:02:56]}  Bb7 {[%clk 0:02:56]} 11. d5 {[%clk 0:02:56]}  Nf6 {[%clk 0:02:46]} 12. bxc4 {[%clk 0:02:56]}  b4 {[%clk 0:02:44]} 13. Bxf6 {[%clk 0:02:55]}  Qxf6 {[%clk 0:02:44]} 14. Qa4+ {[%clk 0:02:56]}  Nd7 {[%clk 0:02:37]} 15. Nd4 {[%clk 0:02:55]}  Rb8 {[%clk 0:01:42]} 16. c5 {[%clk 0:02:40]}  Bxd5 {[%clk 0:01:19]} 17. Bb5 {[%clk 0:02:29]}  O-O {[%clk 0:01:04]} 18. Bxd7 {[%clk 0:02:24]}  e5 {[%clk 0:01:04]} 19. Ne2 {[%clk 0:02:16]}  Bxg2 {[%clk 0:01:02]} 20. Rg1 {[%clk 0:02:14]}  Bf3 {[%clk 0:01:01]} 21. Qxa5 {[%clk 0:01:37]}  Ra8 {[%clk 0:00:50]} 0-1


[Site "https://www.chess.com"]

[Event "Titled Tuesday Blitz May 16 Late 2023"]
[White "Joubert, Dantelle"]
[Black "Goswami, Vedant"]
[WhiteFideId "14310813"]
[BlackFideId "5003725"]
[WhiteElo "1507"]
[BlackElo "2011"]
[Result "0-1"]
[Round "06"]
[TimeControl "180+2"]
[Date "2023.05.16"]
[WhiteClock "0:01:06"]
[BlackClock "0:01:45"]

1. d4 {[%clk 0:03:00]}  Nf6 {[%clk 0:02:58]} 2. c4 {[%clk 0:03:00]}  e6 {[%clk 0:02:57]} 3. Nc3 {[%clk 0:02:56]}  Bb4 {[%clk 0:02:54]} 4. e3 {[%clk 0:02:55]}  O-O {[%clk 0:02:51]} 5. Ne2 {[%clk 0:02:54]}  d5 {[%clk 0:02:49]} 6. a3 {[%clk 0:02:53]}  Be7 {[%clk 0:02:48]} 7. Nf4 {[%clk 0:02:53]}  dxc4 {[%clk 0:02:32]} 8. Bxc4 {[%clk 0:02:52]}  a6 {[%clk 0:02:31]} 9. Qf3 {[%clk 0:02:36]}  c5 {[%clk 0:02:29]} 10. dxc5 {[%clk 0:02:29]}  Bxc5 {[%clk 0:02:27]} 11. O-O {[%clk 0:02:28]}  Nc6 {[%clk 0:02:26]} 12. Rd1 {[%clk 0:02:15]}  Qe7 {[%clk 0:02:25]} 13. Qe2 {[%clk 0:02:10]}  b5 {[%clk 0:02:24]} 14. Ba2 {[%clk 0:02:07]}  Bb7 {[%clk 0:02:23]} 15. e4 {[%clk 0:02:01]}  Nd4 {[%clk 0:01:58]} 16. Qf1 {[%clk 0:01:35]}  Ng4 {[%clk 0:01:53]} 17. Be3 {[%clk 0:01:20]}  Nxe3 {[%clk 0:01:45]} 18. fxe3 {[%clk 0:01:06]}  Nc2 {[%clk 0:01:45]} 0-1


[Site "https://www.chess.com"]

[Event "Titled Tuesday Blitz May 16 Late 2023"]
[White "ArchibaldCerveza29"]
[Black "Lopez Perdomo, Juan David"]
[BlackFideId "4405137"]
[WhiteElo "2370"]
[BlackElo "1965"]
[Result "1-0"]
[Round "06"]
[TimeControl "180+2"]
[Date "2023.05.16"]
[WhiteClock "0:00:25"]
[BlackClock "0:00:10"]

1. d4 {[%clk 0:03:00]}  c5 {[%clk 0:02:46]} 2. e3 {[%clk 0:02:54]}  e6 {[%clk 0:02:46]} 3. Nf3 {[%clk 0:02:53]}  d5 {[%clk 0:02:46]} 4. Be2 {[%clk 0:02:49]}  Nf6 {[%clk 0:02:46]} 5. O-O {[%clk 0:02:48]}  Be7 {[%clk 0:02:47]} 6. b3 {[%clk 0:02:49]}  O-O {[%clk 0:02:47]} 7. Bb2 {[%clk 0:02:49]}  b6 {[%clk 0:02:47]} 8. c4 {[%clk 0:02:48]}  Bb7 {[%clk 0:02:48]} 9. cxd5 {[%clk 0:02:49]}  Nxd5 {[%clk 0:02:47]} 10. Nc3 {[%clk 0:02:44]}  Nxc3 {[%clk 0:02:43]} 11. Bxc3 {[%clk 0:02:44]}  Nd7 {[%clk 0:02:44]} 12. Qb1 {[%clk 0:02:34]}  Nf6 {[%clk 0:02:43]} 13. Rd1 {[%clk 0:02:33]}  Qc7 {[%clk 0:02:41]} 14. dxc5 {[%clk 0:02:30]}  Qxc5 {[%clk 0:02:40]} 15. Qb2 {[%clk 0:02:28]}  Rac8 {[%clk 0:02:40]} 16. Rac1 {[%clk 0:02:26]}  Qh5 {[%clk 0:02:37]} 17. Be5 {[%clk 0:01:57]}  Rxc1 {[%clk 0:02:30]} 18. Rxc1 {[%clk 0:01:58]}  Ng4 {[%clk 0:01:47]} 19. Bxg7 {[%clk 0:01:05]}  Bxf3 {[%clk 0:01:33]} 20. Bxf3 {[%clk 0:01:06]}  Qxh2+ {[%clk 0:01:27]} 21. Kf1 {[%clk 0:01:06]}  Rd8 {[%clk 0:00:23]} 22. Bxg4 {[%clk 0:00:57]}  Qh1+ {[%clk 0:00:23]} 23. Ke2 {[%clk 0:00:57]}  Qxg2 {[%clk 0:00:24]} 24. Bf3 {[%clk 0:00:42]}  Qxg7 {[%clk 0:00:24]} 25. Qxg7+ {[%clk 0:00:37]}  Kxg7 {[%clk 0:00:25]} 26. Rc7 {[%clk 0:00:37]}  Bb4 {[%clk 0:00:18]} 27. Rxa7 {[%clk 0:00:32]}  Rd2+ {[%clk 0:00:18]} 28. Kf1 {[%clk 0:00:32]}  Rb2 {[%clk 0:00:13]} 29. Bh5 {[%clk 0:00:31]}  Kh6 {[%clk 0:00:10]} 30. Bxf7 {[%clk 0:00:30]}  e5 {[%clk 0:00:09]} 31. Bd5 {[%clk 0:00:24]}  Rb1+ {[%clk 0:00:08]} 32. Kg2 {[%clk 0:00:23]}  Rb2 {[%clk 0:00:09]} 33. Be4 {[%clk 0:00:14]}  Bc5 {[%clk 0:00:09]} 34. Kf3 {[%clk 0:00:14]}  Kg5 {[%clk 0:00:09]} 35. Rxh7 {[%clk 0:00:14]}  Rxa2 {[%clk 0:00:09]} 36. Rg7+ {[%clk 0:00:13]}  Kf6 {[%clk 0:00:09]} 37. Rg6+ {[%clk 0:00:13]}  Ke7 {[%clk 0:00:09]} 38. b4 {[%clk 0:00:13]}  Bxb4 {[%clk 0:00:07]} 39. Rxb6 {[%clk 0:00:14]}  Bd6 {[%clk 0:00:08]} 40. Kg3 {[%clk 0:00:12]}  Ra5 {[%clk 0:00:06]} 41. Kg4 {[%clk 0:00:11]}  Rc5 {[%clk 0:00:06]} 42. Kf5 {[%clk 0:00:11]}  Ra5 {[%clk 0:00:07]} 43. Rb7+ {[%clk 0:00:12]}  Kd8 {[%clk 0:00:07]} 44. Ke6 {[%clk 0:00:12]}  Be7 {[%clk 0:00:07]} 45. Rd7+ {[%clk 0:00:13]}  Ke8 {[%clk 0:00:02]} 46. Rxe7+ {[%clk 0:00:14]}  Kd8 {[%clk 0:00:01]} 47. Rd7+ {[%clk 0:00:14]}  Kc8 {[%clk 0:00:02]} 48. Rd5 {[%clk 0:00:13]}  Ra6+ {[%clk 0:00:02]} 49. Kxe5 {[%clk 0:00:14]}  Ra2 {[%clk 0:00:02]} 50. Bf5+ {[%clk 0:00:15]}  Kb7 {[%clk 0:00:02]} 51. f4 {[%clk 0:00:15]}  Kc6 {[%clk 0:00:02]} 52. e4 {[%clk 0:00:16]}  Ra7 {[%clk 0:00:02]} 53. Rd6+ {[%clk 0:00:17]}  Kc5 {[%clk 0:00:02]} 54. Rd7 {[%clk 0:00:17]}  Rxd7 {[%clk 0:00:02]} 55. Bxd7 {[%clk 0:00:17]}  Kb6 {[%clk 0:00:03]} 56. Be6 {[%clk 0:00:18]}  Kc7 {[%clk 0:00:04]} 57. f5 {[%clk 0:00:19]}  Kd8 {[%clk 0:00:05]} 58. f6 {[%clk 0:00:19]}  Ke8 {[%clk 0:00:06]} 59. Kf5 {[%clk 0:00:20]}  Kf8 {[%clk 0:00:06]} 60. e5 {[%clk 0:00:21]}  Ke8 {[%clk 0:00:06]} 61. Bc4 {[%clk 0:00:22]}  Kf8 {[%clk 0:00:07]} 62. Bd3 {[%clk 0:00:23]}  Ke8 {[%clk 0:00:08]} 63. e6 {[%clk 0:00:24]}  Kf8 {[%clk 0:00:09]} 64. e7+ {[%clk 0:00:24]}  Ke8 {[%clk 0:00:10]} 65. Bb5+ {[%clk 0:00:24]}  Kf7 {[%clk 0:00:10]} 66. e8=Q# {[%clk 0:00:25]} 1-0


[Site "https://www.chess.com"]

[Event "Titled Tuesday Blitz May 16 Late 2023"]
[White "Skaric, Djuro"]
[Black "Sanchez, Robert"]
[WhiteFideId "934569"]
[BlackFideId "2034360"]
[WhiteElo "2282"]
[BlackElo "1862"]
[Result "1-0"]
[Round "06"]
[TimeControl "180+2"]
[Date "2023.05.16"]
[WhiteClock "0:01:46"]
[BlackClock "0:02:10"]

1. g3 {[%clk 0:02:55]}  d5 {[%clk 0:02:58]} 2. Bg2 {[%clk 0:02:55]}  Nc6 {[%clk 0:02:59]} 3. d3 {[%clk 0:02:56]}  e5 {[%clk 0:02:56]} 4. Nf3 {[%clk 0:02:56]}  Be6 {[%clk 0:02:56]} 5. O-O {[%clk 0:02:57]}  f6 {[%clk 0:02:56]} 6. Nc3 {[%clk 0:02:56]}  Qd7 {[%clk 0:02:56]} 7. e4 {[%clk 0:02:55]}  d4 {[%clk 0:02:56]} 8. Ne2 {[%clk 0:02:55]}  O-O-O {[%clk 0:02:56]} 9. a4 {[%clk 0:02:49]}  h5 {[%clk 0:02:56]} 10. a5 {[%clk 0:02:48]}  h4 {[%clk 0:02:54]} 11. Nxh4 {[%clk 0:02:46]}  g5 {[%clk 0:02:54]} 12. Nf3 {[%clk 0:02:42]}  Bh3 {[%clk 0:02:53]} 13. g4 {[%clk 0:02:17]}  Bxg2 {[%clk 0:02:45]} 14. Kxg2 {[%clk 0:02:17]}  Qxg4+ {[%clk 0:02:45]} 15. Ng3 {[%clk 0:02:17]}  Nge7 {[%clk 0:02:40]} 16. Rh1 {[%clk 0:02:15]}  Qh3+ {[%clk 0:02:40]} 17. Kg1 {[%clk 0:02:14]}  Ng6 {[%clk 0:02:37]} 18. Qf1 {[%clk 0:02:11]}  Qh7 {[%clk 0:02:26]} 19. Nf5 {[%clk 0:02:09]}  Nce7 {[%clk 0:02:22]} 20. Qg2 {[%clk 0:02:05]}  Nxf5 {[%clk 0:02:21]} 21. exf5 {[%clk 0:02:03]}  Nf4 {[%clk 0:02:20]} 22. Bxf4 {[%clk 0:02:02]}  gxf4 {[%clk 0:02:20]} 23. a6 {[%clk 0:01:46]}  Rg8 {[%clk 0:02:10]} 1-0


[Site "https://www.chess.com"]

[Event "Titled Tuesday Blitz May 16 Late 2023"]
[White "Levar, Nenad"]
[Black "Chemin, Justo Reinaldo"]
[WhiteFideId "14504430"]
[BlackFideId "2101580"]
[WhiteElo "2095"]
[BlackElo "1940"]
[Result "1-0"]
[Round "06"]
[TimeControl "180+2"]
[Date "2023.05.16"]
[WhiteClock "0:00:29"]
[BlackClock "0:00:00"]

1. d4 {[%clk 0:03:00]}  d5 {[%clk 0:02:50]} 2. c4 {[%clk 0:02:53]}  dxc4 {[%clk 0:02:45]} 3. Nf3 {[%clk 0:02:51]}  a6 {[%clk 0:02:44]} 4. a4 {[%clk 0:02:50]}  e6 {[%clk 0:02:44]} 5. e3 {[%clk 0:02:49]}  c5 {[%clk 0:02:43]} 6. Bxc4 {[%clk 0:02:49]}  Nf6 {[%clk 0:02:42]} 7. O-O {[%clk 0:02:48]}  Nc6 {[%clk 0:02:41]} 8. dxc5 {[%clk 0:02:46]}  Qxd1 {[%clk 0:02:38]} 9. Rxd1 {[%clk 0:02:45]}  Bxc5 {[%clk 0:02:39]} 10. Nc3 {[%clk 0:02:45]}  Ke7 {[%clk 0:02:31]} 11. b3 {[%clk 0:02:43]}  Bd7 {[%clk 0:02:23]} 12. Bb2 {[%clk 0:02:42]}  Na5 {[%clk 0:02:12]} 13. Nd4 {[%clk 0:02:30]}  Nxc4 {[%clk 0:02:10]} 14. bxc4 {[%clk 0:02:29]}  Rhc8 {[%clk 0:02:05]} 15. Nb3 {[%clk 0:02:26]}  Ba7 {[%clk 0:01:58]} 16. Ba3+ {[%clk 0:02:25]}  Ke8 {[%clk 0:01:57]} 17. c5 {[%clk 0:02:24]}  b6 {[%clk 0:01:45]} 18. Rac1 {[%clk 0:02:09]}  bxc5 {[%clk 0:01:42]} 19. Ne2 {[%clk 0:02:05]}  c4 {[%clk 0:01:40]} 20. Nbd4 {[%clk 0:02:03]}  Bxa4 {[%clk 0:01:40]} 21. Re1 {[%clk 0:01:56]}  Nd5 {[%clk 0:01:16]} 22. e4 {[%clk 0:01:46]}  Nf6 {[%clk 0:01:12]} 23. Nc3 {[%clk 0:01:42]}  Bxd4 {[%clk 0:01:10]} 24. Nxa4 {[%clk 0:01:41]}  Ng4 {[%clk 0:01:08]} 25. Re2 {[%clk 0:01:37]}  e5 {[%clk 0:00:59]} 26. h3 {[%clk 0:01:36]}  Nf6 {[%clk 0:01:00]} 27. Nc3 {[%clk 0:01:31]}  Rab8 {[%clk 0:00:57]} 28. Kf1 {[%clk 0:01:27]}  Rb3 {[%clk 0:00:56]} 29. Bb2 {[%clk 0:01:27]}  Rcb8 {[%clk 0:00:52]} 30. Ba1 {[%clk 0:01:26]}  Bxc3 {[%clk 0:00:46]} 31. Bxc3 {[%clk 0:01:24]}  Rb1 {[%clk 0:00:47]} 32. Rc2 {[%clk 0:01:14]}  Rxc1+ {[%clk 0:00:46]} 33. Rxc1 {[%clk 0:01:13]}  Nxe4 {[%clk 0:00:40]} 34. Bxe5 {[%clk 0:01:11]}  Rc8 {[%clk 0:00:35]} 35. f3 {[%clk 0:01:06]}  Nd2+ {[%clk 0:00:35]} 36. Ke2 {[%clk 0:01:05]}  Nb3 {[%clk 0:00:36]} 37. Rc3 {[%clk 0:01:00]}  f6 {[%clk 0:00:37]} 38. Bd6 {[%clk 0:00:58]}  Kd7 {[%clk 0:00:35]} 39. Bb4 {[%clk 0:00:58]}  a5 {[%clk 0:00:32]} 40. Ba3 {[%clk 0:00:57]}  Ke6 {[%clk 0:00:31]} 41. Ke3 {[%clk 0:00:56]}  Kd5 {[%clk 0:00:31]} 42. Rc2 {[%clk 0:00:55]}  Re8+ {[%clk 0:00:31]} 43. Kf2 {[%clk 0:00:53]}  a4 {[%clk 0:00:20]} 44. Bb4 {[%clk 0:00:52]}  f5 {[%clk 0:00:21]} 45. g4 {[%clk 0:00:51]}  f4 {[%clk 0:00:19]} 46. Ra2 {[%clk 0:00:48]}  Re3 {[%clk 0:00:14]} 47. Rxa4 {[%clk 0:00:46]}  Nd4 {[%clk 0:00:12]} 48. Ra5+ {[%clk 0:00:44]}  Ke6 {[%clk 0:00:11]} 49. Bc5 {[%clk 0:00:41]}  Rxf3+ {[%clk 0:00:11]} 50. Kg2 {[%clk 0:00:42]}  Rd3 {[%clk 0:00:10]} 51. Ra7 {[%clk 0:00:38]}  f3+ {[%clk 0:00:10]} 52. Kf2 {[%clk 0:00:37]}  Kd5 {[%clk 0:00:10]} 53. Bxd4 {[%clk 0:00:36]}  Kxd4 {[%clk 0:00:09]} 54. Rxg7 {[%clk 0:00:36]}  c3 {[%clk 0:00:08]} 55. Rc7 {[%clk 0:00:35]}  Rd2+ {[%clk 0:00:01]} 56. Kxf3 {[%clk 0:00:34]}  Kd3 {[%clk 0:00:02]} 57. Kf4 {[%clk 0:00:33]}  c2 {[%clk 0:00:02]} 58. Kg5 {[%clk 0:00:31]}  Ke2 {[%clk 0:00:00]} 59. Kh6 {[%clk 0:00:29]} 1-0


[Site "https://www.chess.com"]

[Event "Titled Tuesday Blitz May 16 Late 2023"]
[White "Barria Santos, Jose Guilherme"]
[Black "Milovic, Aleksandra"]
[WhiteFideId "1939300"]
[BlackFideId "933988"]
[WhiteElo "2266"]
[BlackElo "2000"]
[Result "0-1"]
[Round "06"]
[TimeControl "180+2"]
[Date "2023.05.16"]
[WhiteClock "0:01:54"]
[BlackClock "0:01:48"]

1. e4 {[%clk 0:03:00]}  e5 {[%clk 0:02:58]} 2. Nf3 {[%clk 0:03:00]}  Nf6 {[%clk 0:02:58]} 3. d3 {[%clk 0:02:58]}  Nc6 {[%clk 0:02:50]} 4. Nbd2 {[%clk 0:02:58]}  Bc5 {[%clk 0:02:46]} 5. Nb3 {[%clk 0:02:54]}  Bb6 {[%clk 0:02:45]} 6. Be2 {[%clk 0:02:47]}  O-O {[%clk 0:02:43]} 7. O-O {[%clk 0:02:46]}  d5 {[%clk 0:02:44]} 8. exd5 {[%clk 0:02:46]}  Nxd5 {[%clk 0:02:45]} 9. Nfd2 {[%clk 0:02:44]}  Nf4 {[%clk 0:02:42]} 10. Nc4 {[%clk 0:02:43]}  Nxe2+ {[%clk 0:02:33]} 11. Qxe2 {[%clk 0:02:44]}  Re8 {[%clk 0:02:26]} 12. c3 {[%clk 0:02:33]}  Be6 {[%clk 0:02:20]} 13. Nxb6 {[%clk 0:02:26]}  axb6 {[%clk 0:02:19]} 14. Be3 {[%clk 0:02:23]}  Qf6 {[%clk 0:02:10]} 15. Nd2 {[%clk 0:02:15]}  Qg6 {[%clk 0:02:08]} 16. Ne4 {[%clk 0:02:09]}  f5 {[%clk 0:02:02]} 17. Ng5 {[%clk 0:02:09]}  Bd5 {[%clk 0:01:59]} 18. Bd2 {[%clk 0:02:03]}  h6 {[%clk 0:01:57]} 19. c4 {[%clk 0:02:04]}  Nd4 {[%clk 0:01:55]} 20. Qd1 {[%clk 0:01:54]}  Bc6 {[%clk 0:01:48]} 0-1


[Site "https://www.chess.com"]

[Event "Titled Tuesday Blitz May 16 Late 2023"]
[White "Manon-og, Ramon Jr."]
[Black "Winkels, Marcel"]
[WhiteFideId "5200776"]
[BlackFideId "1003887"]
[WhiteElo "2342"]
[BlackElo "1900"]
[Result "0-1"]
[Round "06"]
[TimeControl "180+2"]
[Date "2023.05.16"]
[WhiteClock "0:00:13"]
[BlackClock "0:00:46"]

1. e4 {[%clk 0:02:50]}  Nf6 {[%clk 0:03:00]} 2. Nc3 {[%clk 0:02:43]}  d5 {[%clk 0:02:57]} 3. exd5 {[%clk 0:02:40]}  Nxd5 {[%clk 0:02:55]} 4. Nxd5 {[%clk 0:02:37]}  Qxd5 {[%clk 0:02:54]} 5. Nf3 {[%clk 0:02:33]}  Bg4 {[%clk 0:02:53]} 6. Be2 {[%clk 0:02:30]}  Nc6 {[%clk 0:02:52]} 7. O-O {[%clk 0:02:27]}  O-O-O {[%clk 0:02:50]} 8. h3 {[%clk 0:02:28]}  Bh5 {[%clk 0:02:43]} 9. d3 {[%clk 0:01:44]}  e5 {[%clk 0:02:42]} 10. Bg5 {[%clk 0:01:37]}  f6 {[%clk 0:02:38]} 11. Be3 {[%clk 0:01:32]}  g5 {[%clk 0:02:38]} 12. c4 {[%clk 0:01:29]}  Qe6 {[%clk 0:02:11]} 13. Qa4 {[%clk 0:01:22]}  Kb8 {[%clk 0:01:33]} 14. Rab1 {[%clk 0:00:58]}  Bxf3 {[%clk 0:01:30]} 15. Bxf3 {[%clk 0:00:51]}  Nd4 {[%clk 0:01:29]} 16. Bxd4 {[%clk 0:00:34]}  Rxd4 {[%clk 0:01:25]} 17. Qb5 {[%clk 0:00:32]}  c6 {[%clk 0:01:15]} 18. Qb3 {[%clk 0:00:18]}  h5 {[%clk 0:01:06]} 19. Rbc1 {[%clk 0:00:16]}  g4 {[%clk 0:01:05]} 20. Be2 {[%clk 0:00:14]}  gxh3 {[%clk 0:00:58]} 21. gxh3 {[%clk 0:00:13]}  Qxh3 {[%clk 0:00:46]} 0-1


[Site "https://www.chess.com"]

[Event "Titled Tuesday Blitz May 16 Late 2023"]
[White "Tarnowska, Aleksandra"]
[Black "Alexikov, Alexander"]
[WhiteFideId "1180967"]
[BlackFideId "14103958"]
[WhiteElo "1776"]
[BlackElo "2186"]
[Result "0-1"]
[Round "06"]
[TimeControl "180+2"]
[Date "2023.05.16"]
[WhiteClock "0:00:00"]
[BlackClock "0:01:33"]

1. e4 {[%clk 0:03:00]}  c5 {[%clk 0:02:58]} 2. Nf3 {[%clk 0:03:00]}  d6 {[%clk 0:02:58]} 3. Bb5+ {[%clk 0:03:01]}  Nd7 {[%clk 0:02:57]} 4. O-O {[%clk 0:03:00]}  Nf6 {[%clk 0:02:57]} 5. Re1 {[%clk 0:03:00]}  g6 {[%clk 0:02:57]} 6. c3 {[%clk 0:03:00]}  Bg7 {[%clk 0:02:56]} 7. d4 {[%clk 0:03:00]}  cxd4 {[%clk 0:02:55]} 8. cxd4 {[%clk 0:03:01]}  O-O {[%clk 0:02:54]} 9. e5 {[%clk 0:02:55]}  dxe5 {[%clk 0:02:47]} 10. dxe5 {[%clk 0:02:54]}  Ng4 {[%clk 0:02:47]} 11. e6 {[%clk 0:02:35]}  fxe6 {[%clk 0:02:33]} 12. Rxe6 {[%clk 0:02:23]}  Nde5 {[%clk 0:02:28]} 13. Qb3 {[%clk 0:01:43]}  Bxe6 {[%clk 0:02:19]} 14. Qxe6+ {[%clk 0:01:43]}  Kh8 {[%clk 0:02:18]} 15. Nc3 {[%clk 0:01:30]}  Rf6 {[%clk 0:02:04]} 16. Qb3 {[%clk 0:01:25]}  Nxf3+ {[%clk 0:02:02]} 17. gxf3 {[%clk 0:01:25]}  Rxf3 {[%clk 0:02:02]} 18. Be2 {[%clk 0:01:09]}  Qd6 {[%clk 0:01:55]} 19. Kf1 {[%clk 0:00:13]}  Qxh2 {[%clk 0:01:46]} 20. Ke1 {[%clk 0:00:00]}  Rd8 {[%clk 0:01:33]} 0-1


[Site "https://www.chess.com"]